fUST/lending_fUST_20250114
["ID","MTS","AMOUNT","RATE_DAILY","PERIOD"]
[348895804,1736863848622,-1342.06,0.00022191,3]
[348895806,1736863848635,-1128.92,0.00022191,3]
[348895808,1736863848645,-500.0,0.00022191,3]
[348895810,1736863848655,-27073.49,0.00022191,2]
[348895812,1736863848665,-500.0,0.00022191,3]
[348895814,1736863848674,-500.0,0.00022191,3]
[348895816,1736863848683,-500.0,0.00022191,3]
[348895818,1736863848694,-692.16,0.00022191,3]
[348895820,1736863848704,-500.0,0.00022191,3]
[348895822,1736863848714,-556.21,0.00022191,3]
[348895825,1736863848724,-500.0,0.00022191,3]
[348895827,1736863848734,-43318.87,0.00022191,3]
[348895829,1736863848745,-524.51,0.00022191,3]
[348895831,1736863848755,-5131.51,0.00022191,2]
[348895833,1736863848765,-1130.32,0.00022191,3]
[348895835,1736863848775,-1994.39,0.00022191,3]
[348895837,1736863848785,-6448.84,0.00022191,3]
[348895839,1736863848796,-677.78,0.00022191,3]
[348895841,1736863848806,-500.0,0.00022191,3]
[348895843,1736863848816,-1029.24,0.00022191,3]
[348895845,1736863848826,-500.0,0.00022191,3]
[348895846,1736863848837,-648.8004816,0.00022191,3]
[348895847,1736863848846,-4537.12,0.00022191,3]
[348895848,1736863848857,-2401.3,0.00022191,3]
[348895849,1736863848868,-584.62,0.00022191,3]
[348895850,1736863848878,-500.0,0.00022191,3]
[348895851,1736863848889,-500.0,0.00022191,3]
[348895852,1736863848899,-590.75,0.00022191,3]
[348895853,1736863848910,-2305.5,0.00022191,3]
[348895854,1736863848920,-1523.5,0.00022191,3]
[348895855,1736863848931,-500.0,0.00022191,3]
[348895856,1736863848941,-603.8,0.00022191,3]
[348895857,1736863848950,-697.89,0.00022191,3]
[348895858,1736863848960,-1865.8,0.00022191,3]
[348895859,1736863848970,-621.15,0.00022191,3]
[348895860,1736863848980,-541.14388753,0.00022191,3]
[348895861,1736863848989,-569.94114635,0.00022191,3]
[348895862,1736863848999,-501.99,0.00022191,3]
[348895863,1736863849009,-500.0,0.00022191,3]
[348895864,1736863849019,-500.0,0.00022191,3]
[348895865,1736863849029,-505.26,0.00022191,3]
[348895866,1736863849038,-2086.44,0.00022191,3]
[348895867,1736863849050,-4296.9,0.00022191,3]
[348895868,1736863849060,-500.0,0.00022191,3]
[348895869,1736863849070,-500.0,0.00022191,3]
[348895870,1736863849080,-500.0,0.00022191,3]
[348895871,1736863849089,-500.0,0.00022191,3]
[348895872,1736863849099,-500.0,0.00022191,3]
[348895873,1736863849109,-877.71,0.00022191,3]
[348895874,1736863849120,-237.57294354,0.00022191,3]
[348895875,1736863849130,-577.59,0.00022191,3]
[348895876,1736863849141,-861.39,0.00022191,3]
[348895877,1736863849151,-2059.6,0.00022191,3]
[348895878,1736863849160,-500.0,0.00022191,3]
[348895879,1736863849170,-500.0,0.00022191,3]
[348895880,1736863849179,-503.44,0.00022191,3]
[348895881,1736863849189,-4048.51,0.00022191,3]
[348895882,1736863849198,-500.0,0.00022191,3]
[348895883,1736863849208,-500.0,0.00022191,3]
[348895884,1736863849218,-500.0,0.00022191,3]
[348895885,1736863849228,-10053.83,0.00022191,3]
[348895886,1736863849237,-1704.95,0.00022191,3]
[348895887,1736863849247,-500.0,0.00022191,3]
[348895888,1736863849257,-1016.39,0.00022191,3]
[348895889,1736863849267,-2597.05,0.00022191,3]
[348895890,1736863849277,-1849.84,0.00022191,3]
[348895891,1736863849287,-1738.98,0.00022191,3]
[348895892,1736863849298,-699.13,0.00022191,3]
[348895893,1736863849309,-500.0,0.00022191,3]
[348895894,1736863849326,-500.0,0.00022191,3]
[348895895,1736863849336,-500.0,0.00022191,3]
[348895896,1736863849347,-5478.17526349,0.000222,2]
[348895897,1736863849359,-151.0,0.000222,8]
[348895898,1736863849369,-420.0583734,0.00022228,2]
[348895899,1736863849378,-957.42317623,0.00022245,2]
[348895900,1736863849389,-160.0,0.00022271,2]
[348895901,1736863849399,-160.0,0.00022271,2]
[348895902,1736863849409,-160.0,0.00022271,2]
[348895903,1736863849419,-160.0,0.00022271,2]
[348895904,1736863849429,-160.0,0.00022271,2]
[348895905,1736863849440,-160.0,0.00022271,2]
[348895906,1736863849451,-160.0,0.00022271,2]
[348895907,1736863849460,-166.15,0.00022271,2]
[348895908,1736863849470,-160.0,0.00022283,4]
[348895909,1736863849480,-500.0,0.00022328,3]
[348895910,1736863849490,-500.0,0.00022328,3]
[348895911,1736863849500,-500.0,0.00022328,3]
[348895912,1736863849511,-500.0,0.00022328,3]
[348895913,1736863849521,-500.0,0.00022328,3]
[348895914,1736863849531,-10661.45,0.00022328,3]
[348895915,1736863849541,-500.0,0.00022328,3]
[348895916,1736863849552,-500.0,0.00022328,3]
[348895917,1736863849562,-624.24,0.00022328,3]
[348895918,1736863849573,-500.0,0.00022328,3]
[348895919,1736863849583,-500.0,0.00022328,3]
[348895920,1736863849593,-500.0,0.00022328,3]
[348895921,1736863849603,-500.0,0.00022328,3]
[348895922,1736863849614,-500.0,0.00022328,3]
[348895923,1736863849624,-500.0,0.00022328,3]
[348895924,1736863849635,-500.0,0.00022328,3]
[348895925,1736863849644,-500.0,0.00022328,3]
[348895926,1736863849655,-500.0,0.00022328,3]
[348895927,1736863849665,-555.47,0.00022328,3]
[348895928,1736863849675,-500.0,0.00022328,3]
[348895929,1736863849685,-500.0,0.00022328,3]
[348895930,1736863849694,-500.0,0.00022328,3]
[348895931,1736863849705,-500.0,0.00022328,3]
[348895932,1736863849715,-518.72937959,0.00022328,3]
[348895933,1736863849725,-500.0,0.00022328,3]
[348895934,1736863849735,-500.0,0.00022328,3]
[348895935,1736863849746,-500.0,0.00022328,3]
[348895936,1736863849757,-648.6,0.00022328,3]
[348895937,1736863849767,-300.36,0.00022328,3]
[348895938,1736863849778,-150.21,0.00022328,3]
[348895939,1736863849790,-976.54,0.00022328,3]
[348895940,1736863849802,-500.0,0.00022328,3]
[348895941,1736863849812,-500.0,0.00022328,3]
[348895942,1736863849821,-800.75,0.00022328,3]
[348895943,1736863849831,-603.86688662,0.00022328,3]
[348895944,1736863849841,-518.41333556,0.00022328,3]
[348895945,1736863849851,-500.0,0.00022328,3]
[348895946,1736863849861,-602.56,0.00022328,3]
[348895947,1736863849870,-500.0,0.00022328,3]
[348895948,1736863849880,-500.0,0.00022328,3]
[348895949,1736863849889,-500.0,0.00022328,3]
[348895950,1736863849899,-666.37,0.00022328,3]
[348895951,1736863849908,-1167.65,0.00022328,3]
[348895952,1736863849918,-500.0,0.00022328,3]
[348895953,1736863849928,-905.35,0.00022328,3]
[348895954,1736863849938,-500.0,0.00022328,3]
[348895955,1736863849947,-500.0,0.00022328,3]
[348895956,1736863849957,-500.0,0.00022328,3]
[348895957,1736863849967,-1155.85,0.00022328,3]
[348895958,1736863849976,-334.34297622,0.00022328,3]
[348895959,1736863849986,-862.62,0.00022328,3]
[348895960,1736863849996,-500.0,0.00022328,3]
[348895961,1736863850005,-500.0,0.00022328,3]
[348895962,1736863850145,-798.75,0.00022328,3]
[348895963,1736863850154,-255.99596333,0.00022328,3]
[348895964,1736863850164,-1111.58,0.00022328,3]
[348895965,1736863850173,-500.0,0.00022328,3]
[348895966,1736863850183,-500.0,0.00022328,3]
[348895967,1736863850192,-938.24,0.00022328,3]
[348895968,1736863850202,-500.0,0.00022328,3]
[348895969,1736863850211,-500.0,0.00022328,3]
[348895970,1736863850220,-501.06,0.00022328,3]
[348895971,1736863850230,-500.0,0.00022328,3]
[348895972,1736863850239,-500.0,0.00022328,3]
[348895973,1736863850249,-500.0,0.00022328,3]
[348895974,1736863850258,-500.0,0.00022328,3]
[348895975,1736863850268,-500.0,0.00022328,3]
[348895976,1736863850278,-683.74,0.00022328,3]
[348895977,1736863850288,-612.28,0.00022328,3]
[348895978,1736863850298,-500.0,0.00022328,3]
[348895979,1736863850308,-500.0,0.00022328,3]
[348895980,1736863850318,-500.0,0.00022328,3]
[348895981,1736863850329,-639.85,0.00022328,3]
[348895982,1736863850338,-849.75,0.00022328,3]
[348895983,1736863850347,-848.14,0.00022328,3]
[348895984,1736863850357,-646.88,0.00022328,3]
[348895985,1736863850366,-500.0,0.00022328,3]
[348895986,1736863850376,-500.0,0.00022328,3]
[348895987,1736863850385,-500.0,0.00022328,3]
[348895988,1736863850395,-474.99160156,0.00022328,3]
[348895989,1736863850405,-765.36,0.00022328,3]
[348895990,1736863850414,-888.92,0.00022328,3]
[348895991,1736863850424,-500.0,0.00022328,3]
[348895992,1736863850433,-500.0,0.00022328,3]
[348895993,1736863850443,-2567.75,0.00022328,3]
[348895994,1736863850452,-500.0,0.00022328,3]
[348895995,1736863850462,-500.0,0.00022328,3]
[348895996,1736863850471,-500.0,0.00022328,3]
[348895997,1736863850481,-500.0,0.00022328,3]
[348895998,1736863850491,-530.9980873,0.00022328,3]
[348895999,1736863850500,-500.0,0.00022328,3]
[348896000,1736863850509,-224.20323058,0.00022328,3]
[348896001,1736863850518,-629.41,0.00022328,3]
[348896002,1736863850528,-500.0,0.00022328,3]
[348896003,1736863850537,-500.0,0.00022328,3]
[348896004,1736863850546,-1413.47,0.00022328,3]
[348896005,1736863850555,-500.0,0.00022328,3]
[348896006,1736863850564,-584.19,0.00022328,3]
[348896007,1736863850573,-500.0,0.00022328,3]
[348896008,1736863850583,-1126.87,0.00022328,3]
[348896009,1736863850592,-500.0,0.00022328,3]
[348896010,1736863850601,-500.0,0.00022328,3]
[348896011,1736863850611,-505.27,0.00022328,3]
[348896012,1736863850621,-500.0,0.00022328,3]
[348896013,1736863850631,-616.16,0.00022328,3]
[348896014,1736863850641,-1118.88,0.00022328,3]
[348896015,1736863850650,-783.08,0.00022328,3]
[348896016,1736863850660,-500.0,0.00022328,3]
[348896017,1736863850669,-500.0,0.00022328,3]
[348896018,1736863850679,-605.0,0.00022328,3]
[348896019,1736863850689,-1009.28,0.00022328,3]
[348896020,1736863850698,-500.0,0.00022328,3]
[348896021,1736863850707,-6485.76,0.00022328,3]
[348896022,1736863850716,-500.0,0.00022328,3]
[348896023,1736863850727,-1690.57,0.00022328,3]
[348896024,1736863850736,-740.18,0.00022328,3]
[348896025,1736863850748,-500.0,0.00022328,3]
[348896026,1736863850758,-500.0,0.00022328,3]
[348896027,1736863850768,-500.0,0.00022328,3]
[348896028,1736863850778,-512.12,0.00022328,3]
[348896029,1736863850788,-500.0,0.00022328,3]
[348896030,1736863850799,-1010.0,0.00022328,3]
[348896031,1736863850809,-500.0,0.00022328,3]
[348896032,1736863850818,-500.0,0.00022328,3]
[348896033,1736863850828,-500.0,0.00022328,3]
[348896034,1736863850838,-1299.63,0.00022328,3]
[348896035,1736863850847,-500.0,0.00022328,3]
[348896036,1736863850857,-3768.06,0.00022328,3]
[348896037,1736863850866,-500.0,0.00022328,3]
[348896038,1736863850875,-500.0,0.00022328,3]
[348896039,1736863850885,-1342.06,0.00022328,3]
[348896040,1736863850895,-1128.92,0.00022328,3]
[348896041,1736863850904,-500.0,0.00022328,3]
[348896042,1736863850913,-27073.49,0.00022328,2]
[348896043,1736863850923,-500.0,0.00022328,3]
[348896044,1736863850933,-500.0,0.00022328,3]
[348896045,1736863850943,-500.0,0.00022328,3]
[348896046,1736863850952,-692.16,0.00022328,3]
[348896047,1736863850961,-500.0,0.00022328,3]
[348896048,1736863850971,-556.21,0.00022328,3]
[348896049,1736863850980,-500.0,0.00022328,3]
[348896050,1736863850990,-43318.87,0.00022328,3]
[348896051,1736863851000,-524.51,0.00022328,3]
[348896052,1736863851010,-5131.51,0.00022328,2]
[348896053,1736863851019,-1130.32,0.00022328,3]
[348896054,1736863851028,-1994.39,0.00022328,3]
[348896055,1736863851037,-6448.84,0.00022328,3]
[348896056,1736863851047,-677.78,0.00022328,3]
[348896057,1736863851056,-1029.24,0.00022328,3]
[348896058,1736863851066,-500.0,0.00022328,3]
[348896059,1736863851075,-500.0,0.00022328,3]
[348896060,1736863851085,-4537.12,0.00022328,3]
[348896061,1736863851094,-2401.3,0.00022328,3]
[348896062,1736863851104,-584.62,0.00022328,3]
[348896063,1736863851113,-500.0,0.00022328,3]
[348896064,1736863851123,-158.12968171,0.00022328,3]
[348896065,1736863851133,-500.0,0.00022328,3]
[348896066,1736863851142,-590.75,0.00022328,3]
[348896067,1736863851151,-2305.5,0.00022328,3]
[348896068,1736863851160,-1523.5,0.00022328,3]
[348896069,1736863851170,-500.0,0.00022328,3]
[348896070,1736863851179,-603.8,0.00022328,3]
[348896071,1736863851188,-500.0,0.00022328,3]
[348896072,1736863851198,-697.89,0.00022328,3]
[348896073,1736863851207,-1865.8,0.00022328,3]
[348896074,1736863851216,-621.15,0.00022328,3]
[348896075,1736863851225,-501.99,0.00022328,3]
[348896076,1736863851234,-500.0,0.00022328,3]
[348896077,1736863851245,-500.0,0.00022328,3]
[348896078,1736863851254,-505.26,0.00022328,3]
[348896079,1736863851263,-2086.44,0.00022328,3]
[348896080,1736863851272,-4296.9,0.00022328,3]
[348896081,1736863851283,-500.0,0.00022328,3]
[348896082,1736863851292,-500.0,0.00022328,3]
[348896083,1736863851303,-500.0,0.00022328,3]
[348896084,1736863851312,-500.0,0.00022328,3]
[348896085,1736863851325,-500.0,0.00022328,3]
[348896086,1736863851335,-877.71,0.00022328,3]
[348896087,1736863851344,-577.59,0.00022328,3]
[348896088,1736863851355,-861.39,0.00022328,3]
[348896089,1736863851364,-2059.6,0.00022328,3]
[348896090,1736863851373,-500.0,0.00022328,3]
[348896091,1736863851382,-500.0,0.00022328,3]
[348896092,1736863851391,-503.44,0.00022328,3]
[348896093,1736863851402,-500.0,0.00022328,3]
[348896094,1736863851411,-150.21,0.00022328,2]
[348896095,1736863851420,-4048.51,0.00022328,3]
[348896096,1736863851429,-150.21,0.00022328,3]
[348896097,1736863851439,-500.0,0.00022328,3]
[348896098,1736863851448,-388.26049023,0.00022328,3]
[348896099,1736863851458,-500.0,0.00022328,3]
[348896100,1736863851467,-10053.83,0.00022328,3]
[348896101,1736863851476,-1704.95,0.00022328,3]
[348896102,1736863851486,-500.0,0.00022328,3]
[348896103,1736863851495,-1016.39,0.00022328,3]
[348896104,1736863851504,-2597.05,0.00022328,3]
[348896105,1736863851514,-1849.84,0.00022328,3]
[348896106,1736863851523,-1738.98,0.00022328,3]
[348896107,1736863851533,-500.0,0.00022328,3]
[348896108,1736863851543,-699.13,0.00022328,3]
[348896109,1736863851554,-267.66834512,0.00022328,3]
[348896110,1736863851563,-957.42317623,0.00022348,2]
[348896111,1736863851573,-420.0583734,0.00022365,2]
[348896112,1736863851582,-623.79147526,0.0002245,2]
[348896113,1736863851592,-957.42317623,0.00022452,2]
[348896114,1736863851601,-500.0,0.00022465,3]
[348896115,1736863851611,-500.0,0.00022465,3]
[348896116,1736863851621,-500.0,0.00022465,3]
[348896117,1736863851630,-500.0,0.00022465,3]
[348896118,1736863851639,-500.0,0.00022465,3]
[348896119,1736863851648,-10661.45,0.00022465,3]
[348896120,1736863851658,-500.0,0.00022465,3]
[348896121,1736863851667,-500.0,0.00022465,3]
[348896122,1736863851676,-624.24,0.00022465,3]
[348896123,1736863851686,-500.0,0.00022465,3]
[348896124,1736863851695,-500.0,0.00022465,3]
[348896125,1736863851704,-500.0,0.00022465,3]
[348896126,1736863851715,-613.78320071,0.00022465,3]
[348896127,1736863851724,-500.0,0.00022465,3]
[348896128,1736863851733,-500.0,0.00022465,3]
[348896129,1736863851742,-533.46329053,0.00022465,3]
[348896130,1736863851752,-500.0,0.00022465,3]
[348896131,1736863851762,-378.75715303,0.00022465,3]
[348896132,1736863851771,-555.47,0.00022465,3]
[348896133,1736863851780,-500.0,0.00022465,3]
[348896134,1736863851790,-500.0,0.00022465,3]
[348896135,1736863851800,-500.0,0.00022465,3]
[348896136,1736863851811,-500.0,0.00022465,3]
[348896137,1736863851820,-500.0,0.00022465,3]
[348896138,1736863851830,-500.0,0.00022465,3]
[348896139,1736863851839,-500.0,0.00022465,3]
[348896140,1736863851849,-648.6,0.00022465,3]
[348896141,1736863851858,-976.54,0.00022465,3]
[348896142,1736863851867,-500.0,0.00022465,3]
[348896143,1736863851876,-500.0,0.00022465,3]
[348896144,1736863851886,-800.75,0.00022465,3]
[348896145,1736863851895,-500.0,0.00022465,3]
[348896146,1736863851904,-602.56,0.00022465,3]
[348896147,1736863851914,-500.0,0.00022465,3]
[348896148,1736863851923,-500.0,0.00022465,3]
[348896149,1736863851933,-500.0,0.00022465,3]
[348896150,1736863851942,-666.37,0.00022465,3]
[348896151,1736863851952,-1167.65,0.00022465,3]
[348896152,1736863851961,-500.0,0.00022465,3]
[348896153,1736863851970,-905.35,0.00022465,3]
[348896154,1736863851980,-500.0,0.00022465,3]
[348896155,1736863851989,-489.02637761,0.00022465,3]
[348896156,1736863851998,-500.0,0.00022465,3]
[348896157,1736863852008,-1155.85,0.00022465,3]
[348896158,1736863852018,-862.62,0.00022465,3]
[348896159,1736863852028,-500.0,0.00022465,3]
[348896160,1736863852037,-500.0,0.00022465,3]
[348896161,1736863852048,-798.75,0.00022465,3]
[348896162,1736863852058,-1111.58,0.00022465,3]
[348896163,1736863852067,-500.0,0.00022465,3]
[348896164,1736863852077,-500.0,0.00022465,3]
[348896165,1736863852086,-938.24,0.00022465,3]
[348896166,1736863852098,-500.0,0.00022465,3]
[348896167,1736863852107,-500.0,0.00022465,3]
[348896168,1736863852116,-501.06,0.00022465,3]
[348896169,1736863852126,-537.57030159,0.00022465,3]
[348896170,1736863852135,-500.0,0.00022465,3]
[348896171,1736863852145,-500.0,0.00022465,3]
[348896172,1736863852154,-500.0,0.00022465,3]
[348896173,1736863852163,-500.0,0.00022465,3]
[348896174,1736863852172,-683.74,0.00022465,3]
[348896175,1736863852182,-612.28,0.00022465,3]
[348896176,1736863852191,-500.0,0.00022465,3]
[348896177,1736863852200,-500.0,0.00022465,3]
[348896178,1736863852210,-500.0,0.00022465,3]
[348896179,1736863852219,-639.85,0.00022465,3]
[348896180,1736863852229,-849.75,0.00022465,3]
[348896181,1736863852238,-848.14,0.00022465,3]
[348896182,1736863852248,-646.88,0.00022465,3]
[348896183,1736863852257,-500.0,0.00022465,3]
[348896184,1736863852266,-500.0,0.00022465,3]
[348896185,1736863852275,-500.0,0.00022465,3]
[348896186,1736863852286,-765.36,0.00022465,3]
[348896187,1736863852295,-888.92,0.00022465,3]
[348896188,1736863852306,-500.0,0.00022465,3]
[348896189,1736863852318,-500.0,0.00022465,3]
[348896190,1736863852328,-2567.75,0.00022465,3]
[348896191,1736863852338,-500.0,0.00022465,3]
[348896192,1736863852347,-500.0,0.00022465,3]
[348896193,1736863852356,-500.0,0.00022465,3]
[348896194,1736863852366,-500.0,0.00022465,3]
[348896195,1736863852375,-500.0,0.00022465,3]
[348896196,1736863852385,-629.41,0.00022465,3]
[348896197,1736863852394,-500.0,0.00022465,3]
[348896198,1736863852403,-500.0,0.00022465,3]
[348896199,1736863852414,-1413.47,0.00022465,3]
[348896200,1736863852423,-500.0,0.00022465,3]
[348896201,1736863852432,-584.19,0.00022465,3]
[348896202,1736863852441,-500.0,0.00022465,3]
[348896203,1736863852450,-1126.87,0.00022465,3]
[348896204,1736863852459,-500.0,0.00022465,3]
[348896205,1736863852469,-500.0,0.00022465,3]
[348896206,1736863852478,-505.27,0.00022465,3]
[348896207,1736863852487,-500.0,0.00022465,3]
[348896208,1736863852497,-616.16,0.00022465,3]
[348896209,1736863852621,-1118.88,0.00022465,3]
[348896210,1736863852631,-783.08,0.00022465,3]
[348896211,1736863852641,-500.0,0.00022465,3]
[348896212,1736863852650,-500.0,0.00022465,3]
[348896213,1736863852660,-605.0,0.00022465,3]
[348896214,1736863852670,-1009.28,0.00022465,3]
[348896215,1736863852679,-500.0,0.00022465,3]
[348896216,1736863852688,-6485.76,0.00022465,3]
[348896217,1736863852698,-500.0,0.00022465,3]
[348896218,1736863852707,-1690.57,0.00022465,3]
[348896219,1736863852718,-740.18,0.00022465,3]
[348896220,1736863852728,-500.0,0.00022465,3]
[348896221,1736863852738,-500.0,0.00022465,3]
[348896222,1736863852748,-500.0,0.00022465,3]
[348896223,1736863852759,-512.12,0.00022465,3]
[348896224,1736863852769,-500.0,0.00022465,3]
[348896225,1736863852779,-1010.0,0.00022465,3]
[348896226,1736863852789,-500.0,0.00022465,3]
[348896227,1736863852799,-500.0,0.00022465,3]
[348896228,1736863852808,-500.0,0.00022465,3]
[348896229,1736863852818,-1299.63,0.00022465,3]
[348896230,1736863852827,-500.0,0.00022465,3]
[348896231,1736863852837,-3768.06,0.00022465,3]
[348896232,1736863852846,-500.0,0.00022465,3]
[348896233,1736863852855,-1342.06,0.00022465,3]
[348896234,1736863852864,-500.0,0.00022465,3]
[348896235,1736863852874,-1128.92,0.00022465,3]
[348896236,1736863852883,-500.0,0.00022465,3]
[348896237,1736863852892,-27073.49,0.00022465,2]
[348896238,1736863852903,-500.0,0.00022465,3]
[348896239,1736863852912,-500.0,0.00022465,3]
[348896240,1736863852921,-500.0,0.00022465,3]
[348896241,1736863852931,-692.16,0.00022465,3]
[348896242,1736863852940,-500.0,0.00022465,3]
[348896243,1736863852950,-556.21,0.00022465,3]
[348896244,1736863852959,-500.0,0.00022465,3]
[348896245,1736863852968,-43318.87,0.00022465,3]
[348896246,1736863852978,-524.51,0.00022465,3]
[348896247,1736863852987,-5131.51,0.00022465,2]
[348896248,1736863852996,-1130.32,0.00022465,3]
[348896249,1736863853005,-1994.39,0.00022465,3]
[348896250,1736863853014,-6448.84,0.00022465,3]
[348896251,1736863853024,-677.78,0.00022465,3]
[348896252,1736863853033,-1029.24,0.00022465,3]
[348896253,1736863853043,-500.0,0.00022465,3]
[348896254,1736863853052,-500.0,0.00022465,3]
[348896255,1736863853062,-2401.3,0.00022465,3]
[348896256,1736863853072,-4537.12,0.00022465,3]
[348896257,1736863853081,-584.62,0.00022465,3]
[348896258,1736863853090,-500.0,0.00022465,3]
[348896259,1736863853100,-500.0,0.00022465,3]
[348896260,1736863853109,-590.75,0.00022465,3]
[348896261,1736863853118,-2305.5,0.00022465,3]
[348896262,1736863853128,-1523.5,0.00022465,3]
[348896263,1736863853137,-500.0,0.00022465,3]
[348896264,1736863853146,-603.8,0.00022465,3]
[348896265,1736863853155,-697.89,0.00022465,3]
[348896266,1736863853164,-1865.8,0.00022465,3]
[348896267,1736863853174,-621.15,0.00022465,3]
[348896268,1736863853183,-501.99,0.00022465,3]
[348896269,1736863853192,-500.0,0.00022465,3]
[348896270,1736863853202,-500.0,0.00022465,3]
[348896271,1736863853211,-505.26,0.00022465,3]
[348896272,1736863853220,-2086.44,0.00022465,3]
[348896273,1736863853230,-4296.9,0.00022465,3]
[348896274,1736863853239,-500.0,0.00022465,3]
[348896275,1736863853248,-500.0,0.00022465,3]
[348896276,1736863853258,-500.0,0.00022465,3]
[348896277,1736863853267,-500.0,0.00022465,3]
[348896278,1736863853276,-500.0,0.00022465,3]
[348896279,1736863853286,-877.71,0.00022465,3]
[348896280,1736863853295,-577.59,0.00022465,3]
[348896281,1736863853306,-861.39,0.00022465,3]
[348896282,1736863853318,-2059.6,0.00022465,3]
[348896283,1736863853327,-500.0,0.00022465,3]
[348896284,1736863853337,-500.0,0.00022465,3]
[348896285,1736863853346,-503.44,0.00022465,3]
[348896286,1736863853355,-4048.51,0.00022465,3]
[348896287,1736863853365,-543.18344196,0.00022465,3]
[348896288,1736863853374,-500.0,0.00022465,3]
[348896289,1736863853383,-1704.95,0.00022465,3]
[348896290,1736863853395,-10053.83,0.00022465,3]
[348896291,1736863853404,-500.0,0.00022465,3]
[348896292,1736863853413,-1016.39,0.00022465,3]
[348896293,1736863853422,-2597.05,0.00022465,3]
[348896294,1736863853432,-1849.84,0.00022465,3]
[348896295,1736863853441,-1738.98,0.00022465,3]
[348896296,1736863853450,-500.0,0.00022465,3]
[348896297,1736863853460,-699.13,0.00022465,3]
[348896298,1736863853469,-1959.85,0.000225,14]
[348896299,1736863853479,-4988.96,0.000225,14]
[348896300,1736863853488,-10421.42,0.000225,2]
[348896301,1736863853498,-1000.0,0.00022521,2]
[348896302,1736863853507,-153.0,0.0002255,2]
[348896303,1736863853516,-153.0,0.0002255,2]
[348896304,1736863853525,-153.0,0.0002255,2]
[348896305,1736863853534,-153.0,0.0002255,2]
[348896306,1736863853543,-153.0,0.0002255,2]
[348896307,1736863853556,-153.0,0.0002255,2]
[348896308,1736863853565,-153.0,0.0002255,2]
[348896309,1736863853575,-153.0,0.0002255,2]
[348896310,1736863853584,-153.0,0.0002255,2]
[348896311,1736863853594,-249.67,0.0002255,2]
[348896312,1736863853604,-957.42317623,0.00022555,2]
[348896313,1736863853613,-150.21,0.00022602,3]
[348896314,1736863853623,-500.0,0.00022602,3]
[348896315,1736863853632,-500.0,0.00022602,3]
[348896316,1736863853641,-150.21,0.00022602,3]
[348896317,1736863853651,-500.0,0.00022602,3]
[348896318,1736863853660,-500.0,0.00022602,3]
[348896319,1736863853669,-500.0,0.00022602,3]
[348896320,1736863853679,-502.46000505,0.00022602,3]
[348896321,1736863853688,-500.0,0.00022602,3]
[348896322,1736863853697,-10661.45,0.00022602,3]
[348896323,1736863853707,-500.0,0.00022602,3]
[348896324,1736863853716,-500.0,0.00022602,3]